Cogmind - Beta 15 @@@ ROGUE MODE // 2025.09.26 @ 11:22:19 Player: Trantor Result: Self-destructed Performance ------------- Evolutions (2) 1000 Regions Visited (5) 1000 Robots Destroyed (31) 155 Value Destroyed (762) 762 Prototype IDs (25) 500 Alien Tech Used (0) 0 Bonus (396) 396 TOTAL SCORE: 3813 Bonus ------- Follower Combat Kills 96 Aligned with FarCom 300 Cogmind --------- Core Integrity 519/550 Matter 209/300 Energy 265/265 System Corruption 0% Temperature Cool (0) Movement Core (450) Ox8 Location -8/Materials Parts ------- > --- POWER (1) -------- Improved Ion Engine > --- PROPULSION (4) --- (None) > --- UTILITY (4) ------ Lightpack 2.0 Improved Medium Armor Plating > --- WEAPON (2) ------- Light Cannon Light Cannon > --- INVENTORY (40) --- Light Deuterium Engine Light Deuterium Engine Medium Storage Unit Medium Matter Pod (100) Experimental Sensor Array Improved Propulsion Shielding Improved Propulsion Shielding Hardened Medium Armor Plating Hacking Suite Minigun Minigun Light Cannon Grenade Launcher Grenade Launcher Rocket Launcher Rocket Launcher Flail Flail Peak State ------------ > --- POWER ------------ Improved Ion Engine > --- PROPULSION ------- Light Treads Light Treads > --- UTILITY ---------- Lightpack 2.0 Improved Medium Armor Plating > --- WEAPON ----------- Light Cannon Rocket Launcher > --- INVENTORY -------- Light Deuterium Engine Light Deuterium Engine Medium Storage Unit Medium Matter Pod Experimental Sensor Array Improved Propulsion Shielding Improved Propulsion Shielding Hardened Medium Armor Plating Hacking Suite Minigun Minigun Light Cannon Light Cannon Grenade Launcher Grenade Launcher Rocket Launcher Flail Flail [Rating: 45] Favorites ----------- Power Ion Engine Engine Ion Engine Propulsion Light Treads Treads Light Treads Leg Aluminum Leg Utility Small Storage Unit Storage Small Storage Unit Processor Signal Interpreter Protection Improved Medium Armor Plating Weapon Light Cannon Energy Gun Medium Laser Ballistic Gun Assault Rifle Ballistic Cannon Light Cannon Launcher Rocket Launcher Build | -11 -10 -10 -10 -9 -8 ------- Run | Yrd Mat Min Exi Min Mat Slots Evolved 4 | . . . . . 4 Power . | . . . . . . Propulsion 2 | . . . . . 2 Utility 2 | . . . . . 2 Weapon . | . . . . . . Parts Attached 17 | . 7 . 3 5 2 Power 2 | . . . . 1 1 Engine 2 | . . . . 1 1 Core . | . . . . . . Reactor . | . . . . . . Propulsion 3 | . 2 . . 1 . Treads 3 | . 2 . . 1 . Leg . | . . . . . . Wheel . | . . . . . . Hover . | . . . . . . Flight . | . . . . . . Utility 4 | . 1 . 1 1 1 Device . | . . . . . . Storage 2 | . . . 1 . 1 Processor 1 | . 1 . . . . Hackware . | . . . . . . Protection 1 | . . . . 1 . Artifact . | . . . . . . Weapon 8 | . 4 . 2 2 . Energy Gun . | . . . . . . Energy Cannon . | . . . . . . Ballistic Gun . | . . . . . . Ballistic Cannon 6 | . 3 . 2 1 . Launcher 2 | . 1 . . 1 . Special Weapon . | . . . . . . Impact Weapon . | . . . . . . Slashing Weapon . | . . . . . . Piercing Weapon . | . . . . . . Special Melee Weapon . | . . . . . . Unidentified Prototypes . | . . . . . . Parts Lost 6 | . . . . 4 2 Power 2 | . . . . 2 . Propulsion 3 | . . . . 1 2 Utility . | . . . . . . Weapon 1 | . . . . 1 . Highest Loss Streak 3 | . . . . 3 1 To Critical Strikes . | . . . . . . Average Backups 8 | . 7 7 7 6 13 Power 1 | . 1 1 1 . 1 Propulsion . | . . . 1 . . Utility . | . . . . 1 4 Weapon 5 | . 6 6 5 3 7 Tool/Special . | . . . . . . Unused Backups 27 | . 9 2 . 1 15 Power 6 | . 2 . . 1 3 Propulsion 4 | . 4 . . . . Utility 7 | . 1 . . . 6 Weapon 10 | . 2 2 . . 6 Tool/Special . | . . . . . . Average Slot Usage (%) 85 | . 86 100 96 72 59 Engine 9 | . 14 14 14 1 6 Treads 25 | . 23 28 28 28 16 Storage 13 | . 14 14 14 14 9 Processor 6 | . 1 14 11 . . Ballistic Cannon 25 | . 22 28 28 27 18 Peak Build Rating 45 | . 7 7 9 13 45 Average Rating 11 | . 6 7 7 8 42 On Entrance 8 | 6 6 7 7 9 13 Naked Turns . | . . . . . . Heaviest Build 25 | 14 16 16 21 23 25 Greatest Support 40 | 20 40 40 40 40 40 Greatest Overweight (x) 1 | . . . . . 1 Average Overweight (x) . | . . . . . . Largest Inventory Capacity 40 | . 8 8 10 10 40 Average Capacity 12 | . 8 8 9 10 39 Most Carried 18 | . 8 8 10 9 18 Average Carried 8 | . 7 7 8 8 14 Final Capacity 40 | 8 8 8 10 10 40 Final Carried 18 | 6 8 8 9 9 18 Class Distribution -------------------- 89% | Mutant 10% | Hauler-Mutant Dominant Class ---------------- Mutant | -10/Materials Mutant | -10/Mines Mutant | -10/Exiles Mutant | -9/Mines Hauler-Mutant | -8/Materials Resources | -11 -10 -10 -10 -9 -8 ----------- Run | Yrd Mat Min Exi Min Mat Matter Collected 955 | 185 135 158 . 254 223 Remotely . | . . . . . . Salvage Created 591 | . 106 107 . 100 278 Parts 45 | . 12 5 . 11 17 Haulers Intercepted 3 | . 2 . . . 1 Recyclers Shooed . | . . . . . . Parts Field Recycled . | . . . . . . Retrieved Matter . | . . . . . . Parts Self-Destructed . | . . . . . . Prevented . | . . . . . . Kills | -11 -10 -10 -10 -9 -8 ------- Run | Yrd Mat Min Exi Min Mat Combat Hostiles Destroyed 22 | . 3 7 . 7 5 Cannons 12 | . 1 6 . 3 2 AOE 10 | . 2 1 . 4 3 Classes Destroyed 8 | . 3 1 . . 4 Worker 2 | . . . . . 2 Builder 1 | . . . . . 1 Hauler 3 | . 2 . . . 1 Operator 1 | . 1 . . . . Watcher 1 | . . . . . 1 Swarmer 8 | . 3 3 . 2 . Grunt 14 | . . 4 . 5 5 Sentry 1 | . . . . . 1 Best Kill Streak 4 | . 3 3 . 4 4 Combat Bots Only 4 | . 3 3 . 4 3 Max Kills in Single Turn 3 | . 2 1 . 2 3 Gunslinging . | . . . . . . Exploded 3 | . 2 1 . 2 3 Melee . | . . . . . . Uniques/NPCs Destroyed . | . . . . . . Combat | -11 -10 -10 -10 -9 -8 -------- Run | Yrd Mat Min Exi Min Mat Hostile Shots Fired 115 | . 7 26 . 53 29 Missed 32 | . 2 9 . 11 10 Hits 83 | . 5 17 . 42 19 Projectile 83 | . 5 17 . 42 19 Critical Strikes 2 | . . . . 2 . Damage Taken 1115 | . 43 206 . 578 288 Core 82 | . . 7 . 44 31 Absorbed by Shields . | . . . . . . Core Remaining (%) 89 | 100 . . . 79 . Volleys Fired 73 | . 11 16 . 20 26 Largest 2 | . 2 2 . 2 2 Hottest 60 | . 60 60 . 60 60 Shots Fired 139 | . 21 32 . 36 50 Gun . | . . . . . . Cannon 133 | . 20 32 . 33 48 Launcher 6 | . 1 . . 3 2 Special . | . . . . . . Kinetic 133 | . 20 32 . 33 48 Thermal . | . . . . . . Explosive 6 | . 1 . . 3 2 Electromagnetic . | . . . . . . Robot Hit Streak 11 | . 4 6 . 11 7 Robot Miss Streak 4 | . 4 3 . 2 4 Penetration Max . | . . . . . . Secondary Targets . | . . . . . . Shots Hit Robots 80 | . 10 17 . 24 29 Core Hits 45 | . 6 9 . 9 21 Critical Kills . | . . . . . . Critical Parts Destroyed . | . . . . . . Critical Strikes 3 | . . . . 1 2 Blast 3 | . . . . 1 2 Melee Attacks . | . . . . . . Impact . | . . . . . . Slashing . | . . . . . . Piercing . | . . . . . . Sneak Attacks . | . . . . . . Combat Hostiles . | . . . . . . Follow-up Attacks . | . . . . . . Damage Inflicted 2201 | . 272 444 . 672 813 Guns . | . . . . . . Cannons 1543 | . 192 331 . 469 551 Explosions 658 | . 80 113 . 203 262 Melee . | . . . . . . Ramming . | . . . . . . Kinetic 1543 | . 192 331 . 469 551 Thermal 113 | . . 113 . . . Explosive 545 | . 80 . . 203 262 Electromagnetic . | . . . . . . Impact . | . . . . . . Slashing . | . . . . . . Piercing . | . . . . . . Highest Corruption . | . . . . . . Average Corruption . | . . . . . . Corruption Purged . | . . . . . . Corruption Blocked . | . . . . . . Overload Shots . | . . . . . . Overflow Damage 28 | . . . . 27 1 Projectiles 1 | . . . . . 1 Explosions 27 | . . . . 27 . Melee . | . . . . . . Knockbacks 10 | . . 1 . 5 4 Impact . | . . . . . . Kinetic 10 | . . 1 . 5 4 Secondary . | . . . . . . Self-Inflicted Damage 48 | . . . . 48 . Shots 1 | . . . . 1 . Rammed . | . . . . . . Targets Rammed . | . . . . . . Kicked . | . . . . . . Crushed . | . . . . . . Highest Temperature 194 | . . 54 . 194 6 Average Temperature 61 | . . 36 . 84 4 Received Heat Transfer 510 | . . 105 . 342 63 Siege Activations . | . . . . . . Martial Activations . | . . . . . . Shielding Activations . | . . . . . . Robots Disrupted . | . . . . . . Combat Hostiles . | . . . . . . Robots Corrupted . | . . . . . . Combat Hostiles . | . . . . . . Parts Fried . | . . . . . . Impact Corruptions . | . . . . . . Robots Melted . | . . . . . . Combat Hostiles . | . . . . . . Parts Melted . | . . . . . . Heat Transferred 100 | . . 100 . . . Parts Sabotaged . | . . . . . . Parts Stolen . | . . . . . . Parts Stripped . | . . . . . . Power Chain Reactions . | . . . . . . Alert | -11 -10 -10 -10 -9 -8 ------- Run | Yrd Mat Min Exi Min Mat Maximum Alert Level . | . . . . . . Low Security (%) 100 | . 100 100 . 100 100 Level 1 . | . . . . . . Level 2 . | . . . . . . Level 3 . | . . . . . . Level 4 . | . . . . . . Level 5 . | . . . . . . High Security . | . . . . . . Max Security . | . . . . . . Peak Influence 119 | . 70 79 . 105 119 Initial . | . . . . . . Average 21 | . 8 7 . 26 66 Influence Increases 948 | . 110 209 . 258 371 Destroy 0b10 Robot/C 560 | . 60 140 . 160 200 Destroy 0b10 Robot/NC 50 | . 15 . . . 35 Destroy Leader 120 | . 14 30 . 20 56 Allied During Kill 27 | . . . . 11 16 Successful Hack 13 | . 13 . . . . Disable Machine 75 | . . 30 . 15 30 Destroy Structure 73 | . 8 9 . 22 34 Lose Combat Pursuer 30 | . . . . 30 . Influence Decreases 867 | . 110 153 56 258 290 Entered New Map 56 | . . . 56 . . Time Decay 599 | . 61 80 . 228 230 Lost Part 50 | . . . . 30 20 Lost Ally 40 | . . . . . 40 Purge Threat 122 | . 49 73 . . . Squads Dispatched 2 | . . . . . 2 Investigation . | . . . . . . Extermination . | . . . . . . Reinforcement 2 | . . . . . 2 Assault . | . . . . . . Garrison . | . . . . . . Intercept . | . . . . . . Searches Triggered . | . . . . . . Construction Impeded . | . . . . . . Haulers Reinforced . | . . . . . . Active Scanning Responses . | . . . . . . Cargo Convoy Interrupts . | . . . . . . Stealth | -11 -10 -10 -10 -9 -8 --------- Run | Yrd Mat Min Exi Min Mat Distress Signals 2 | . . . . . 2 Communications Jammed . | . . . . . . Distress Signals . | . . . . . . Times Spotted 45 | . 11 6 . 10 18 Peak Tracking Total 4 | . 3 3 . 4 4 Tactical Retreats 1 | . . . . 1 . Traps | -11 -10 -10 -10 -9 -8 ------- Run | Yrd Mat Min Exi Min Mat Traps Triggered . | . . . . . . Indirectly . | . . . . . . Trap Hack Attempts . | . . . . . . Triggered . | . . . . . . Disarmed 4 | . 4 . . . . Reprogrammed . | . . . . . . Reused . | . . . . . . Traps Extracted . | . . . . . . Installed . | . . . . . . Triggered . | . . . . . . Machines | -11 -10 -10 -10 -9 -8 ---------- Run | Yrd Mat Min Exi Min Mat Machines Disabled 6 | . 1 2 . 1 2 Max in Single Turn 1 | . 1 1 . 1 . Machines Repaired . | . . . . . . Machines Dismantled . | . . . . . . Machines Sabotaged . | . . . . . . Overloaded Fab Kills . | . . . . . . Hacking | -11 -10 -10 -10 -9 -8 --------- Run | Yrd Mat Min Exi Min Mat Machines Accessed 16 | . 7 1 5 1 2 Terminals 9 | . 6 1 . . 2 Fabricators . | . . . . . . Repair Stations . | . . . . . . Recycling Units 1 | . 1 . . . . Scanalyzers . | . . . . . . Garrison Access . | . . . . . . Total Hacks 84 | . 25 3 50 1 5 Successful 65 | . 12 2 50 1 . Failed 19 | . 13 1 . . 5 Catastrophic . | . . . . . . Database Lockouts . | . . . . . . Manual 24 | . 15 2 2 . 5 Terminals 32 | . 24 3 . . 5 Fabricators . | . . . . . . Repair Stations . | . . . . . . Recycling Units 1 | . 1 . . . . Scanalyzers . | . . . . . . Garrison Access . | . . . . . . Terminal Hacks 60 | . 7 2 50 1 . Record 49 | . . . 49 . . Robot Analysis 2 | . 2 . . . . Prototype ID Bank 1 | . 1 . . . . Open Door 1 | . . . . 1 . Branch Access Points 1 | . 1 . . . . Unreport Threat 2 | . 1 1 . . . Locate Traps 1 | . 1 . . . . Disarm Traps 1 | . 1 . . . . Zone Layout 1 | . . 1 . . . Proto ID Catalog 1 | . . . 1 . . Fabricator Hacks . | . . . . . . Repair Station Hacks . | . . . . . . Recycling Unit Hacks 1 | . 1 . . . . Report Inventory 1 | . 1 . . . . Scanalyzer . | . . . . . . Garrison Access Hacks . | . . . . . . Unauthorized Hacks 4 | . 4 . . . . Terminals 4 | . 4 . . . . Botnet 4 | . 4 . . . . Fabricators . | . . . . . . Repair Stations . | . . . . . . Recycling Units . | . . . . . . Scanalyzers . | . . . . . . Garrison Access . | . . . . . . Data Cores Recovered 1 | . . . . . 1 Used . | . . . . . . Hacking Detections 9 | . 6 1 . . 2 Full Trace Events . | . . . . . . Feedback Events . | . . . . . . Feedback Blocked . | . . . . . . Robot Schematics Acquired . | . . . . . . Robots Built . | . . . . . . Authchips . | . . . . . . Time . | . . . . . . Total Robot Build Rating . | . . . . . . Part Schematics Acquired . | . . . . . . Parts Built . | . . . . . . Authchips . | . . . . . . Time . | . . . . . . Total Part Build Rating . | . . . . . . Parts Repaired . | . . . . . . Time . | . . . . . . Parts Recycled . | . . . . . . Recycled Matter . | . . . . . . Retrieved Matter . | . . . . . . Retrieved Components . | . . . . . . Parts Scanalyzed . | . . . . . . Part Schematics Acquired . | . . . . . . Parts Damaged . | . . . . . . Bothacking | -11 -10 -10 -10 -9 -8 ------------ Run | Yrd Mat Min Exi Min Mat Used RIF Installer . | . . . . . . Robots Hacked . | . . . . . . Non-combat . | . . . . . . Combat . | . . . . . . Robot Hacks Applied . | . . . . . . Relay Couplers Released . | . . . . . . Fabnet Peak Effective % . | . . . . . . Robots Rewired . | . . . . . . Allies Hacked . | . . . . . . Hacks Repelled . | . . . . . . Allies | -11 -10 -10 -10 -9 -8 -------- Run | Yrd Mat Min Exi Min Mat Total Allies 3 | . . . . 3 . Largest Group 3 | . . . . 3 3 Highest-Rated Group 40 | . . . . 40 40 Highest-Rated Ally 16 | . . . . 16 16 Total Orders . | . . . . . . Ally Attacks 42 | . . . . 3 39 Total Damage 390 | . . . . 24 366 Kills 8 | . . . . 1 7 Allies Corrupted . | . . . . . . Allies Melted . | . . . . . . Intel | -11 -10 -10 -10 -9 -8 ------- Run | Yrd Mat Min Exi Min Mat Active Infowar (turns) . | . . . . . . Robot Analysis Total 2 | . 2 . . . . Derelict Logs Recovered 3 | . . 1 . 2 . Drone Launches . | . . . . . . Drone Recoveries . | . . . . . . Exploration | -11 -10 -10 -10 -9 -8 ------------- Run | Yrd Mat Min Exi Min Mat Turns Passed 4498 | . 695 1245 926 1143 489 Spaces Moved 2575 | 1 425 710 575 648 216 Core . | . . . . . . Treads 2482 | . 333 710 575 648 216 Legs 93 | 1 92 . . . . Wheels . | . . . . . . Hover . | . . . . . . Flight . | . . . . . . Fastest Speed 120 | 120 120 160 160 160 160 Average Speed 159 | 120 151 160 160 160 171 Slowest Speed 240 | 120 160 160 160 160 240 Overloaded Moves . | . . . . . . Propulsion Burnouts . | . . . . . . Robots Hopped . | . . . . . . Potential Cave-ins . | . . . . . . Cave-ins Triggered . | . . . . . . Exploration Rate (%) 64 | 2 64 99 94 100 25 Regions Visited 5 Branch Regions 3 Pre-discovered Areas 3 | . . . 1 2 . Known Exits Taken 2 | . 1 1 . . . Unknown Exits Taken 3 | 1 . . 1 1 . Scrap Searched 3 | . . 1 . 2 . Spaces Dug 7 | . . . . . 7 Terrain Destroyed 53 | . 8 9 . 25 11 Melee . | . . . . . . Projectile . | . . . . . . AOE 53 | . 8 9 . 25 11 Terrain Rammed . | . . . . . . Walls Destroyed . | . . . . . . Machines Disabled . | . . . . . . Actions | -11 -10 -10 -10 -9 -8 --------- Run | Yrd Mat Min Exi Min Mat Total 2830 | . 457 790 584 716 283 Wait 119 | . . 59 . 38 22 Move 2570 | . 424 709 574 647 216 Hop . | . . . . . . Pick Up 27 | . 8 3 1 3 12 Fast Attach 4 | . 2 . . 1 1 Attach 6 | . . . 2 3 1 Detach 4 | . . . 3 . 1 Swap 13 | . 5 . 1 4 3 Drop 14 | . 7 3 3 . 1 Fire 73 | . 11 16 . 20 26 Melee . | . . . . . . Ram . | . . . . . . Kick . | . . . . . . Crush . | . . . . . . Escape Stasis . | . . . . . . Rewire . | . . . . . . Trap . | . . . . . . Miscellaneous . | . . . . . . Route ------- -11/Scrapyard -10/Materials (discovered 4 exits: *Mat x2 / *Min x2) -10/Mines (discovered 4 exits: *Mat x2 / *Exi / [*Sub]) -10/Exiles (discovered 2 exits: *Min x2) -9/Mines (discovered 2 exits: *Mat x2) -8/Materials (discovered 1 exit: Fac) History --------- Turn | Location | Event 1 | -11/Scrapyard | Discovered new exit (range 0) 1 | -11/Scrapyard | Entered Materials 173 | -10/Materials | Discovered new exit (range 5) 291 | -10/Materials | Discovered new exit (range 15) 303 | -10/Materials | Build established: Mutant 337 | -10/Materials | Identified exit to Mines 696 | -10/Materials | Entered Mines 719 | -10/Mines | Learned 2 Materials zone layouts 742 | -10/Mines | Received a Rocket Launcher from a helpful Derelict 1231 | -10/Mines | Discovered new exit (range 13) 1686 | -10/Mines | Discovered new exit (range 13) 1690 | -10/Mines | Found a hidden stash of uninstalled traps 1725 | -10/Mines | Identified exit to Materials 1900 | -10/Mines | Discovered exit to Materials (range 5) 1935 | -10/Mines | Deemed a non-threat by the Exiles lab entrance 1935 | -10/Mines | Discovered new exit (range 5) 1940 | -10/Mines | Identified exit to Exiles 1941 | -10/Mines | Entered Exiles 1967 | -10/Exiles | Discovered new exit (range 15) 2012 | -10/Exiles | Met 8R-AWN 2044 | -10/Exiles | Met EX-HEX 2132 | -10/Exiles | Met EX-DEC 2175 | -10/Exiles | Learned location of Zion (-7) 2266 | -10/Exiles | Visited The Gauntlet 2557 | -10/Exiles | Met EX-BIN 2577 | -10/Exiles | Aligned with FarCom system 2578 | -10/Exiles | Given EX-Vault access code 2653 | -10/Exiles | Opened EX-Vault 2684 | -10/Exiles | Found Lightpack 2.0 2713 | -10/Exiles | Warned to stay clear of 0b10 Research branches 2849 | -10/Exiles | Discovered new exit (range 12) 2867 | -10/Exiles | Left Exiles lab with Lightpack 2.0 2867 | -10/Exiles | Entered Mines 2983 | -9/Mines | Lost 3 parts (1p1n1w) 3024 | -9/Mines | Discovered new exit (range 9) 3042 | -9/Mines | Assisted by bots powering up and referring to "LRC-V3" 3209 | -9/Mines | YI-UF0 nonchalantly dropped a Grenade Launcher on the ground 3219 | -9/Mines | Learned location of Recycling (-7) 3318 | -9/Mines | Found a damaged Exp. Sensor Array with a note attached 3321 | -9/Mines | Found Prototype Device 3957 | -9/Mines | Discovered new exit (range 14) 3982 | -9/Mines | Met a Derelict who couldn't figure out how to use a Trap Extractor 4010 | -9/Mines | Entered Materials 4010 | -8/Materials | Accompanied by 3 allies 4010 | -8/Materials | Evolved 4 slots: Propulsion x2, Utility x2 4011 | -8/Materials | Identified exit to Factory 4303 | -8/Materials | Build established: Hauler-Mutant 4499 | -8/Materials | Self-destructed Last Messages --------------- 04418_ U-05 Engineer builds a Wall. 04418_ Y-45 Defender destroyed. 04422_ U-05 Engineer lays Concrete. 04425_ K-01 Serf collects debris. 04426_ U-05 Engineer lays Concrete. 04426_ K-01 Serf collects debris. 04426_ U-05 Engineer builds a Wall. 04427_ U-05 Engineer lays Concrete. 04427_ K-01 Serf collects debris. 04428_ U-05 Engineer lays Concrete. 04443_ K-01 Serf knocked back. 04443_ K-01 Serf destroyed. 04446_ K-01 Serf collects debris. 04447_ U-05 Engineer lays Concrete. 04451_ U-05 Engineer builds a Wall. 04451_ Acquired 14 matter. 04452_ K-01 Serf collects debris. 04455_ U-05 Engineer builds a Wall. 04455_ K-01 Serf collects debris. 04497_ Lgt. Treads destroyed. Map ----- +----------------------------------------------------+ | #??????????????????????????????????????????? | | #??????????????????????????????????????????? | | " ??????????????????????????????????????????? | | " #??????????????????????????????????????????? | | " #??????????????????????????????????????????? | | #??????????????????????????????????????????? | | #######??????????????????????????????????????????? | | ??????????????????????????????????????????? | | ??????????????????!Y ?????????????????????? | | ?????????????????? ????????????????????? | | #######?????????????????? ! ????????????????????? | | """ #???????????????????? #????????????????????? | | """ #???????????????????? #????????????????????? | | """ #???????????????????? #????????????????????? | | #???????????????????+ +????????????????????? | | #???????????????????# #????????????????????? | | #???????????????????# #????????????????????? | | #???????????????????# ####?????????????????? | | #???????????????????# !##????????????????? | | #####?????????########### !#????????????????? | | ??????????????# # !#????????????????? | | ??????????????# # !#????????????????? | | ??????????????# # !#????????????????? | | ??????????????# + !#?????????????????? | | ??????????????# """ """ # ####?????????????????? | | ??????????????# """ """ #@ #??????????????####### | | ??????????????? """ """ #k #??????????????# | | ??????????????? # #??????????????# "T" | | ???????????????########## #??????????????# """ | | ????????????????????????# ###########????# | | ?????????????????#####??# u# #?########## | | ?????????????????# """?# # ###"T"###### | | ?????????????????# "R"?# # # =] | | ?????????????????# " " # %# + ]= % | | ?????????????????# #k # # | | ?????????????????# /* # # ! ## | | ?????????????????# # # # #? | | ?????????????????######## % #* # ! #? | | ???????????????????????## =## ###+#### ! #? | | ????????? %########### [%##### #### != ## | | ????????? T!*% * | | ?????????%%! "" = | | ????????? [ *! [ % | | ????????? ########### !############+##### | | ???????????????????????#########????# # | | ??????????????????????????####??????# + | | ????????????????????????????????????# """ """ ###+ | | ????????????????????????????????????# """ """ # | | ????????????????????????????????????# """ """ # | | ????????????????????????????????????# """ """ #/ ! | +----------------------------------------------------+ Best States ------------- Heat Dissipation 31 Energy Generation 12 Energy Capacity 265 Matter Stores 300 Matter Capacity 300 Sight Range 16 Terrain Scan Density 10 Armor Coverage 225 Evasion (%) 55 Recoil Reduction 2 Item Schematics ----------------- None Robot Schematics ------------------ None Fabricated ------------ Nothing Repaired ---------- Nothing Alien Tech Used ----------------- None Achievements -------------- None Challenges ------------ None Game ------ Seed WardroneCargoMinigun Manual? 0 Play Time 00:32:25 Cumulative 305.0 hours Start 2025.09.26 @ 10:14:08 End 2025.09.26 @ 11:22:19 Sessions 5 Manual Loads 0 Difficulty Rogue Special Mode None Game No. 191 Rogue 147 Adventurer 44 Explorer 0 Win Type - Total 2 Types 2/0/0/0/0/0/0/0/0/0 Lore% 36 Gallery% 54 Achievement% 58 Wizard Run 0 Options --------- Layout 1 ASCII 0 Keyboard 1 Movement Vi Keybinds 1 Fullscreen 1 Font 24/Smallcaps Map View 50x35 Zoom Use 0% Tactical HUD 1 Map Filters NONE Filters NONE Steam 1 RUN: 35d1bb79-c9b1-47b4-b367-7855e62e148e